fUSD/lending_fUSD_20240104
["ID","MTS","AMOUNT","RATE_DAILY","PERIOD"]
[310135140,1704381046914,-729.36,0.00032876,2]
[310135141,1704381046923,-659.91,0.00032876,2]
[310135142,1704381046932,-500.0,0.00032876,2]
[310135143,1704381046942,-562.96,0.00032876,2]
[310135144,1704381046951,-1456.31,0.00032876,2]
[310135145,1704381046961,-516.98,0.00032876,2]
[310135146,1704381046970,-500.0,0.00032876,2]
[310135147,1704381046979,-500.0,0.00032876,2]
[310135148,1704381046988,-851.05,0.00032876,2]
[310135149,1704381046998,-9664.28,0.00032876,2]
[310135150,1704381047007,-500.0,0.00032876,2]
[310135151,1704381047017,-500.0,0.00032876,2]
[310135152,1704381047026,-500.0,0.00032876,2]
[310135153,1704381047036,-500.0,0.00032876,2]
[310135154,1704381047046,-945.06,0.00032876,2]
[310135155,1704381047055,-500.0,0.00032876,2]
[310135156,1704381047065,-500.0,0.00032876,2]
[310135157,1704381047074,-315.2053702,0.00032876,2]
[310135158,1704381047084,-500.0,0.00032876,2]
[310135159,1704381047093,-500.0,0.00032876,2]
[310135160,1704381047103,-1397.4,0.00032876,2]
[310135161,1704381047113,-1357.31,0.00032876,2]
[310135162,1704381047122,-500.0,0.00032876,2]
[310135163,1704381047133,-1381.09,0.00032876,2]
[310135164,1704381047143,-762.25,0.00032876,2]
[310135165,1704381047153,-500.0,0.00032876,2]
[310135166,1704381047163,-500.0,0.00032876,2]
[310135167,1704381047173,-500.0,0.00032876,2]
[310135168,1704381047184,-817.61,0.00032876,2]
[310135169,1704381047194,-610.64,0.00032876,2]
[310135170,1704381047203,-772.57,0.00032876,2]
[310135171,1704381047212,-500.0,0.00032876,2]
[310135172,1704381047222,-1132.65,0.00032876,2]
[310135173,1704381047232,-500.0,0.00032876,2]
[310135174,1704381047242,-500.0,0.00032876,2]
[310135175,1704381047251,-346.86818594,0.00032876,2]
[310135176,1704381047260,-500.0,0.00032876,2]
[310135177,1704381047270,-912.12,0.00032876,2]
[310135178,1704381047280,-541.35,0.00032876,2]
[310135179,1704381047289,-1407.8,0.00032876,2]
[310135180,1704381047298,-500.0,0.00032876,2]
[310135181,1704381047308,-3837.79,0.00032876,2]
[310135182,1704381047318,-500.0,0.00032876,2]
[310135183,1704381047327,-1171.58,0.00032876,2]
[310135184,1704381047337,-500.0,0.00032876,2]
[310135185,1704381047347,-1857.97,0.00032876,2]
[310135186,1704381047357,-500.0,0.00032876,2]
[310135187,1704381047368,-500.0,0.00032876,2]
[310135188,1704381047377,-500.0,0.00032876,2]
[310135189,1704381047387,-823.32,0.00032876,2]
[310135190,1704381047396,-500.0,0.00032876,2]
[310135191,1704381047407,-731.46,0.00032876,2]
[310135192,1704381047417,-6696.46,0.00032876,2]
[310135193,1704381047426,-528.13645839,0.00032876,2]
[310135194,1704381047436,-500.0,0.00032876,2]
[310135195,1704381047446,-500.0,0.00032876,2]
[310135196,1704381047455,-4424.63,0.00032876,2]
[310135197,1704381047465,-500.0,0.00032876,2]
[310135198,1704381047475,-500.0,0.00032876,2]
[310135199,1704381047485,-500.0,0.00032876,2]
[310135200,1704381047494,-2103.22,0.00032876,2]
[310135201,1704381047504,-500.0,0.00032876,2]
[310135202,1704381047514,-500.0,0.00032876,2]
[310135203,1704381047524,-635.41,0.00032876,2]
[310135204,1704381047534,-500.0,0.00032876,2]
[310135205,1704381047544,-947.4,0.00032876,2]
[310135206,1704381047554,-500.0,0.00032876,2]
[310135207,1704381047564,-500.0,0.00032876,2]
[310135208,1704381047574,-702.68,0.00032876,2]
[310135209,1704381047583,-500.0,0.00032876,2]
[310135210,1704381047594,-500.0,0.00032876,2]
[310135211,1704381047604,-500.0,0.00032876,2]
[310135212,1704381047614,-500.0,0.00032876,2]
[310135213,1704381047623,-1420.47,0.00032876,2]
[310135214,1704381047632,-500.0,0.00032876,2]
[310135215,1704381047642,-879.09,0.00032876,2]
[310135216,1704381047652,-1498.4,0.00032876,2]
[310135217,1704381047664,-500.0,0.00032876,2]
[310135218,1704381047674,-3119.38,0.00032876,2]
[310135219,1704381047685,-500.0,0.00032876,2]
[310135220,1704381047695,-500.0,0.00032876,2]
[310135221,1704381047705,-500.0,0.00032876,2]
[310135222,1704381047715,-751.58,0.00032876,2]
[310135223,1704381047724,-605.5,0.00032876,2]
[310135224,1704381047733,-605.24,0.00032876,2]
[310135225,1704381047743,-410.17218531,0.00032876,2]
[310135226,1704381047753,-505.62,0.00032876,2]
[310135227,1704381047762,-3531.69,0.00032876,2]
[310135228,1704381047772,-500.0,0.00032876,2]
[310135229,1704381047783,-500.0,0.00032876,2]
[310135230,1704381047794,-27935.1,0.00032876,2]
[310135231,1704381047805,-500.0,0.00032876,2]
[310135232,1704381047815,-500.0,0.00032876,2]
[310135233,1704381047824,-9652.15,0.00032876,2]
[310135234,1704381047834,-500.0,0.00032876,2]
[310135235,1704381047843,-500.0,0.00032876,2]
[310135236,1704381047852,-500.0,0.00032876,2]
[310135237,1704381047862,-500.0,0.00032876,2]
[310135238,1704381047872,-2298.36,0.00032876,2]
[310135239,1704381047949,-500.0,0.00032876,2]
[310135240,1704381047959,-500.0,0.00032876,2]
[310135241,1704381047969,-500.0,0.00032876,2]
[310135242,1704381047978,-872.44,0.00032876,2]
[310135243,1704381047987,-522.32,0.00032876,2]
[310135244,1704381047997,-1107.28,0.00032876,2]
[310135245,1704381048006,-6169.8,0.00032876,2]
[310135246,1704381048016,-2721.95,0.00032876,2]
[310135247,1704381048025,-500.0,0.00032876,2]
[310135248,1704381048034,-500.0,0.00032876,2]
[310135249,1704381048043,-500.0,0.00032876,2]
[310135250,1704381048053,-790.24,0.00032876,2]
[310135251,1704381048063,-20957.42,0.00032876,2]
[310135252,1704381048072,-500.0,0.00032876,2]
[310135253,1704381048081,-778.65,0.00032876,2]
[310135254,1704381048090,-500.0,0.00032876,2]
[310135255,1704381048100,-675.71,0.00032876,2]
[310135256,1704381048109,-5303.31,0.00032876,2]
[310135257,1704381048118,-1264.17,0.00032876,2]
[310135258,1704381048127,-12349.18,0.00032876,2]
[310135259,1704381048136,-500.0,0.00032876,2]
[310135260,1704381048146,-500.0,0.00032876,2]
[310135261,1704381048155,-863.13,0.00032876,2]
[310135262,1704381048165,-3049.96,0.00032876,2]
[310135263,1704381048175,-683.35,0.00032876,2]
[310135264,1704381048186,-610.44,0.00032876,2]
[310135265,1704381048196,-512.0,0.00032876,2]
[310135266,1704381048208,-875.3,0.00032876,2]
[310135267,1704381048217,-1044.8,0.00032876,2]
[310135268,1704381048229,-500.0,0.00032876,2]
[310135269,1704381048239,-5903.95,0.00032876,2]
[310135270,1704381048249,-932.04,0.00032876,2]
[310135271,1704381048260,-677.34,0.00032876,2]
[310135272,1704381048270,-500.0,0.00032876,2]
[310135273,1704381048279,-500.0,0.00032876,2]
[310135274,1704381048289,-500.0,0.00032876,2]
[310135275,1704381048298,-500.0,0.00032876,2]
[310135276,1704381048307,-500.0,0.00032876,2]
[310135277,1704381048316,-500.0,0.00032876,2]
[310135278,1704381048325,-500.0,0.00032876,2]
[310135279,1704381048334,-500.0,0.00032876,2]
[310135280,1704381048343,-500.0,0.00032876,2]
[310135281,1704381048354,-961.27,0.00032876,2]
[310135282,1704381048364,-500.0,0.00032876,2]
[310135283,1704381048373,-583.08244509,0.00032876,2]
[310135284,1704381048382,-501.98,0.00032876,2]
[310135285,1704381048391,-953.83,0.00032876,2]
[310135286,1704381048401,-500.0,0.00032876,2]
[310135287,1704381048410,-4948.29,0.00032876,2]
[310135288,1704381048419,-2193.95,0.00032876,2]
[310135289,1704381048430,-500.0,0.00032876,2]
[310135290,1704381048439,-500.0,0.00032876,2]
[310135291,1704381048449,-1684.53,0.00032876,2]
[310135292,1704381048459,-1094.17,0.00032876,2]
[310135293,1704381048468,-500.0,0.00032876,2]
[310135294,1704381048477,-11618.59,0.00032876,2]
[310135295,1704381048487,-500.0,0.00032876,2]
[310135296,1704381048498,-214.40335956,0.00032876,2]
[310135297,1704381048507,-500.0,0.00032876,2]
[310135298,1704381048516,-500.0,0.00032876,2]
[310135299,1704381048526,-500.0,0.00032876,2]
[310135300,1704381048535,-688.72,0.00032876,2]
[310135301,1704381048544,-1645.6,0.00032876,2]
[310135302,1704381048553,-595.44,0.00032876,2]
[310135303,1704381048563,-500.0,0.00032876,2]
[310135304,1704381048572,-353.54966878,0.00032876,2]
[310135305,1704381048582,-2835.91,0.00032876,2]
[310135306,1704381048591,-500.0,0.00032876,2]
[310135307,1704381048602,-1135.38,0.00032876,2]
[310135308,1704381048613,-500.0,0.00032876,2]
[310135309,1704381048623,-500.0,0.00032876,2]
[310135310,1704381048633,-965.46,0.00032876,2]
[310135311,1704381048642,-708.02,0.00032876,2]
[310135312,1704381048653,-1387.45,0.00032876,2]
[310135313,1704381048662,-500.0,0.00032876,2]
[310135314,1704381048671,-500.0,0.00032876,2]
[310135315,1704381048681,-500.0,0.00032876,2]
[310135316,1704381048690,-500.0,0.00032876,2]
[310135317,1704381048701,-500.0,0.00032876,2]
[310135318,1704381048711,-500.0,0.00032876,2]
[310135319,1704381048722,-914.93,0.00032876,2]
[310135320,1704381048733,-562.31,0.00032876,2]
[310135321,1704381048744,-500.0,0.00032876,2]
[310135322,1704381048758,-1658.11,0.00032876,2]
[310135323,1704381048767,-500.0,0.00032876,2]
[310135324,1704381048778,-516.33012874,0.00032876,2]
[310135325,1704381048787,-6805.44,0.00032876,2]
[310135326,1704381048798,-504.03,0.00032876,2]
[310135327,1704381048808,-500.0,0.00032876,2]
[310135328,1704381048817,-4232.55,0.00032876,2]
[310135329,1704381048827,-3260.78,0.00032876,2]
[310135330,1704381048839,-660.31,0.00032876,2]
[310135331,1704381048850,-500.0,0.00032876,2]
[310135332,1704381048859,-500.0,0.00032876,2]
[310135333,1704381048870,-622.39,0.00032876,2]
[310135334,1704381048879,-1386.3,0.00032876,2]
[310135335,1704381048888,-647.79,0.00032876,2]
[310135336,1704381048897,-664.7,0.00032876,2]
[310135337,1704381048906,-500.0,0.00032876,2]
[310135338,1704381048915,-7794.64,0.00032876,2]
[310135339,1704381048925,-502.6179563,0.00032876,2]
[310135340,1704381048935,-500.0,0.00032876,2]
[310135341,1704381048945,-500.0,0.00032876,2]
[310135342,1704381048954,-500.0,0.00032876,2]
[310135343,1704381048964,-2148.65,0.00032876,2]
[310135344,1704381048973,-645.03,0.00032876,2]
[310135345,1704381048984,-907.03,0.00032876,2]
[310135346,1704381048993,-500.0,0.00032876,2]
[310135347,1704381049002,-504.42,0.00032876,2]
[310135348,1704381049013,-1742.55,0.00032876,2]
[310135349,1704381049022,-500.0,0.00032876,2]
[310135350,1704381049032,-500.0,0.00032876,2]
[310135351,1704381049041,-500.0,0.00032876,2]
[310135352,1704381049051,-1693.92,0.00032876,2]
[310135353,1704381049061,-500.0,0.00032876,2]
[310135354,1704381049071,-1032.15,0.00032876,2]
[310135355,1704381049080,-500.0,0.00032876,2]
[310135356,1704381049090,-1416.59,0.00032876,2]
[310135357,1704381049100,-777.84,0.00032876,2]
[310135358,1704381049110,-367.49902257,0.00032876,2]
[310135359,1704381049120,-1009.86,0.00032876,2]
[310135360,1704381049131,-3343.5,0.00032876,2]
[310135361,1704381049140,-500.0,0.00032876,2]
[310135362,1704381049152,-500.0,0.00032876,2]
[310135363,1704381049163,-1602.7,0.00032876,2]
[310135364,1704381049173,-2569.63,0.00032876,2]
[310135365,1704381049186,-500.0,0.00032876,2]
[310135366,1704381049196,-500.0,0.00032876,2]
[310135367,1704381049207,-2815.05,0.00032876,2]
[310135368,1704381049216,-2487.32,0.00032876,2]
[310135369,1704381049227,-500.0,0.00032876,2]
[310135370,1704381049238,-286.18197259,0.00032876,2]
[310135371,1704381049248,-713.13,0.00032876,2]
[310135372,1704381049257,-500.0,0.00032876,2]
[310135373,1704381049267,-853.26,0.00032876,2]
[310135374,1704381049276,-423.68957854,0.00032876,2]
[310135375,1704381049286,-1139.8,0.00032876,2]
[310135376,1704381049296,-640.0,0.00032876,2]
[310135377,1704381049308,-500.0,0.00032876,2]
[310135378,1704381049317,-1004.2,0.00032876,2]
[310135379,1704381049327,-505.9,0.00032876,2]
[310135380,1704381049337,-500.0,0.00032876,2]
[310135381,1704381049347,-799.09,0.00032876,2]
[310135382,1704381049357,-500.0,0.00032876,2]
[310135383,1704381049367,-500.0,0.00032876,2]
[310135384,1704381049376,-1434.12,0.00032876,2]
[310135385,1704381049387,-1083.97,0.00032876,2]
[310135386,1704381049397,-500.0,0.00032876,2]
[310135387,1704381049406,-505.01,0.00032876,2]
[310135388,1704381049416,-500.0,0.00032876,2]
[310135389,1704381049425,-500.0,0.00032876,2]
[310135390,1704381049435,-2552.84,0.00032876,2]
[310135391,1704381049445,-500.0,0.00032876,2]
[310135392,1704381049454,-500.0,0.00032876,2]
[310135393,1704381049465,-500.0,0.00032876,2]
[310135394,1704381049475,-695.8,0.00032876,2]
[310135395,1704381049486,-500.0,0.00032876,2]
[310135396,1704381049495,-500.0,0.00032876,2]
[310135397,1704381049505,-1064.9,0.00032876,2]
[310135398,1704381049515,-500.0,0.00032876,2]
[310135399,1704381049524,-500.0,0.00032876,2]
[310135400,1704381049533,-500.0,0.00032876,2]
[310135401,1704381049542,-1227.97,0.00032876,2]
[310135402,1704381049552,-968.61,0.00032876,2]
[310135403,1704381049562,-500.0,0.00032876,2]
[310135404,1704381049571,-500.0,0.00032876,2]
[310135405,1704381049580,-5777.04,0.00032876,2]
[310135406,1704381049591,-1562.0,0.00032876,2]
[310135407,1704381049601,-3207.71,0.00032876,2]
[310135408,1704381049611,-832.23,0.00032876,2]
[310135409,1704381049621,-775.21,0.00032876,2]
[310135410,1704381049631,-1365.02,0.00032876,2]
[310135411,1704381049640,-500.0,0.00032876,2]
[310135412,1704381049650,-500.0,0.00032876,2]
[310135413,1704381049659,-1878.91,0.00032876,2]
[310135414,1704381049670,-767.5,0.00032876,2]
[310135415,1704381049681,-500.0,0.00032876,2]
[310135416,1704381049691,-650.37,0.00032876,2]
[310135417,1704381049700,-500.0,0.00032876,2]
[310135418,1704381049711,-1056.62,0.00032876,2]
[310135419,1704381049721,-500.0,0.00032876,2]
[310135420,1704381049730,-500.0,0.00032876,2]
[310135421,1704381049740,-1860.55,0.00032876,2]
[310135422,1704381049750,-1573.93,0.00032876,2]
[310135423,1704381049760,-2337.85,0.00032876,2]
[310135424,1704381049770,-521.31502675,0.00032876,2]
[310135425,1704381049780,-3463.68,0.00032876,2]
[310135426,1704381049790,-500.0,0.00032876,2]
[310135427,1704381049801,-500.0,0.00032876,2]
[310135428,1704381049810,-500.0,0.00032876,2]
[310135429,1704381049821,-3366.56,0.00032876,2]
[310135430,1704381049830,-500.0,0.00032876,2]
[310135431,1704381049840,-911.83,0.00032876,2]
[310135432,1704381049849,-1731.71,0.00032876,2]
[310135433,1704381049859,-637.50053833,0.00032876,2]
[310135434,1704381049869,-500.0,0.00032876,2]
[310135435,1704381049879,-500.0,0.00032876,2]
[310135436,1704381049890,-500.0,0.00032876,2]
[310135437,1704381049900,-839.06,0.00032876,2]
[310135438,1704381049910,-3067.93,0.00032876,2]
[310135439,1704381049921,-1586.46,0.00032876,2]
[310135440,1704381049931,-500.0,0.00032876,2]
[310135441,1704381049941,-185.78741162,0.00032876,2]
[310135442,1704381049953,-500.0,0.00032876,2]
[310135443,1704381049963,-500.0,0.00032876,2]
[310135444,1704381049973,-599.09051076,0.00032876,2]
[310135445,1704381049983,-500.0,0.00032876,2]
[310135446,1704381049993,-523.39576144,0.00032876,2]
[310135447,1704381050003,-1306.5,0.00032876,2]
[310135448,1704381050013,-739.97,0.00032876,2]
[310135449,1704381050022,-500.0,0.00032876,2]
[310135450,1704381050032,-1780.22,0.00032876,2]
[310135451,1704381050042,-500.0,0.00032876,2]
[310135452,1704381050052,-629.13778786,0.00032876,2]
[310135453,1704381050061,-500.0,0.00032876,2]
[310135454,1704381050071,-4603.8,0.00032876,2]
[310135455,1704381050081,-3134.89,0.00032876,2]
[310135456,1704381050091,-684.13,0.00032876,2]
[310135457,1704381050101,-674.65,0.00032876,2]
[310135458,1704381050110,-8928.12,0.00032876,2]
[310135459,1704381050120,-500.0,0.00032876,2]
[310135460,1704381050129,-500.0,0.00032876,2]
[310135461,1704381050139,-770.93,0.00032876,2]
[310135462,1704381050150,-500.0,0.00032876,2]
[310135463,1704381050161,-500.0,0.00032876,2]
[310135464,1704381050171,-500.0,0.00032876,2]
[310135465,1704381050182,-790.37,0.00032876,2]
[310135466,1704381050191,-1000.0,0.00032876,2]
[310135467,1704381050201,-1615.27,0.00032876,2]
[310135468,1704381050210,-2147.32,0.00032876,2]
[310135469,1704381050219,-500.0,0.00032876,2]
[310135470,1704381050229,-505.28478956,0.00032876,2]
[310135471,1704381050239,-500.0,0.00032876,2]
[310135472,1704381050249,-803.99,0.00032876,2]
[310135473,1704381050258,-1787.86,0.00032876,2]
[310135474,1704381050269,-500.0,0.00032876,2]
[310135475,1704381050278,-533.04,0.00032876,2]
[310135476,1704381050288,-685.32,0.00032876,2]
[310135477,1704381050297,-500.0,0.00032876,2]
[310135478,1704381050307,-685.32,0.00032876,2]
[310135479,1704381050316,-685.32,0.00032876,2]
[310135480,1704381050326,-685.32,0.00032876,2]
[310135481,1704381050337,-500.0,0.00032876,2]
[310135482,1704381050347,-685.32,0.00032876,2]
[310135483,1704381050357,-685.32,0.00032876,2]
[310135484,1704381050367,-2187.69,0.00032877,7]
[310135485,1704381050376,-513.04,0.00032877,15]
[310135486,1704381050386,-1000.0,0.000329,2]
[310135487,1704381050397,-100000.0,0.00033,3]
[310135488,1704381050407,-1657.35994973,0.00033,4]
[310135489,1704381050418,-1969.84423805,0.00033,2]
[310135490,1704381050428,-5000.0,0.00033,7]
[310135491,1704381050439,-5000.0,0.00033,7]
[310135492,1704381050449,-1000.0,0.00033031,7]
[310135493,1704381050459,-404.87671188,0.00033031,7]
[310135494,1704381050470,-182.07078453,0.00033031,7]
[310135495,1704381050480,-216.68838988,0.00033031,7]
[310135496,1704381050490,-433.98768652,0.00033031,7]
[310135497,1704381050501,-16102.18301658,0.0003309,2]
[310135498,1704381050511,-500.0,0.00033149,2]
[310135499,1704381050520,-500.0,0.00033149,2]
[310135500,1704381050530,-500.0,0.00033149,2]
[310135501,1704381050540,-500.0,0.00033149,2]
[310135502,1704381050550,-6449.71,0.00033149,2]
[310135503,1704381050559,-1288.27,0.00033149,2]
[310135504,1704381050570,-858.02,0.00033149,2]
[310135505,1704381050580,-1791.09,0.00033149,2]
[310135506,1704381050589,-500.0,0.00033149,2]
[310135507,1704381050599,-1338.32,0.00033149,2]
[310135508,1704381050609,-1038.49,0.00033149,2]
[310135509,1704381050618,-500.0,0.00033149,2]
[310135510,1704381050628,-1851.25,0.00033149,2]
[310135511,1704381050638,-500.0,0.00033149,2]
[310135512,1704381050648,-500.0,0.00033149,2]
[310135513,1704381050658,-500.0,0.00033149,2]
[310135514,1704381050668,-518.58,0.00033149,2]
[310135515,1704381050677,-998.81,0.00033149,2]
[310135516,1704381050688,-500.0,0.00033149,2]
[310135517,1704381050698,-151.0,0.00033149,7]
[310135518,1704381050708,-526.19,0.0003315,2]
[310135519,1704381050717,-500.0,0.0003315,2]
[310135520,1704381050727,-500.0,0.0003315,2]
[310135521,1704381050737,-500.0,0.0003315,2]
[310135522,1704381050748,-500.0,0.0003315,2]
[310135523,1704381050760,-500.0,0.0003315,2]
[310135524,1704381050770,-500.0,0.0003315,2]
[310135525,1704381050780,-500.0,0.0003315,2]
[310135526,1704381050791,-500.0,0.0003315,2]
[310135527,1704381050801,-500.0,0.0003315,2]
[310135528,1704381050811,-294.40411115,0.0003315,2]
[310135529,1704381050821,-500.0,0.0003315,2]
[310135530,1704381050832,-664.92,0.0003315,2]
[310135531,1704381050842,-500.0,0.0003315,2]
[310135532,1704381050852,-598.03129715,0.0003315,2]
[310135533,1704381050861,-976.94,0.0003315,2]
[310135534,1704381050871,-500.0,0.0003315,2]
[310135535,1704381050881,-500.0,0.0003315,2]
[310135536,1704381050893,-1313.16,0.0003315,2]
[310135537,1704381050904,-500.0,0.0003315,2]
[310135538,1704381050914,-500.0,0.0003315,2]
[310135539,1704381050924,-500.0,0.0003315,2]
[310135540,1704381050933,-500.0,0.0003315,2]
[310135541,1704381050943,-500.0,0.0003315,2]
[310135542,1704381050954,-390.69734233,0.0003315,2]
[310135543,1704381050964,-500.0,0.0003315,2]
[310135544,1704381050973,-552.52,0.0003315,2]
[310135545,1704381050983,-500.0,0.0003315,2]
[310135546,1704381050993,-500.0,0.0003315,2]
[310135547,1704381051003,-626.31,0.0003315,2]
[310135548,1704381051013,-500.0,0.0003315,2]
[310135549,1704381051023,-500.0,0.0003315,2]
[310135550,1704381051033,-500.0,0.0003315,2]
[310135551,1704381051043,-500.0,0.0003315,2]
[310135552,1704381051053,-500.0,0.0003315,2]
[310135553,1704381051062,-500.0,0.0003315,2]
[310135554,1704381051072,-829.09,0.0003315,2]
[310135555,1704381051083,-500.0,0.0003315,2]
[310135556,1704381051093,-500.0,0.0003315,2]
[310135557,1704381051102,-500.0,0.0003315,2]
[310135558,1704381051113,-500.0,0.0003315,2]
[310135559,1704381051122,-500.0,0.0003315,2]
[310135560,1704381051132,-500.0,0.0003315,2]
[310135561,1704381051141,-500.0,0.0003315,2]
[310135562,1704381051151,-500.0,0.0003315,2]
[310135563,1704381051161,-500.0,0.0003315,2]
[310135564,1704381051171,-500.0,0.0003315,2]
[310135565,1704381051183,-758.02,0.0003315,2]
[310135566,1704381051192,-705.84,0.0003315,2]
[310135567,1704381051202,-500.0,0.0003315,2]
[310135568,1704381051212,-739.48,0.0003315,2]
[310135569,1704381051221,-928.98,0.0003315,2]
[310135570,1704381051231,-500.0,0.0003315,2]
[310135571,1704381051241,-500.0,0.0003315,2]
[310135572,1704381051251,-500.0,0.0003315,2]
[310135573,1704381051261,-500.0,0.0003315,2]
[310135574,1704381051271,-500.0,0.0003315,2]
[310135575,1704381051281,-883.62,0.0003315,2]
[310135576,1704381051291,-500.0,0.0003315,2]
[310135577,1704381051301,-707.81,0.0003315,2]
[310135578,1704381051311,-500.0,0.0003315,2]
[310135579,1704381051322,-500.0,0.0003315,2]
[310135580,1704381051331,-500.0,0.0003315,2]
[310135581,1704381051341,-500.0,0.0003315,2]
[310135582,1704381051351,-500.0,0.0003315,2]
[310135583,1704381051360,-500.0,0.0003315,2]
[310135584,1704381051371,-566.76,0.0003315,2]
[310135585,1704381051381,-500.0,0.0003315,2]
[310135586,1704381051391,-500.0,0.0003315,2]
[310135587,1704381051401,-500.0,0.0003315,2]
[310135588,1704381051411,-500.0,0.0003315,2]
[310135589,1704381051421,-500.0,0.0003315,2]
[310135590,1704381051431,-500.0,0.0003315,2]
[310135591,1704381051441,-506.49,0.0003315,2]
[310135592,1704381051452,-500.0,0.0003315,2]
[310135593,1704381051462,-500.0,0.0003315,2]
[310135594,1704381051472,-500.0,0.0003315,2]
[310135595,1704381051482,-500.0,0.0003315,2]
[310135596,1704381051492,-500.0,0.0003315,2]
[310135597,1704381051503,-500.0,0.0003315,2]
[310135598,1704381051513,-656.18,0.0003315,2]
[310135599,1704381051522,-500.0,0.0003315,2]
[310135600,1704381051532,-652.25,0.0003315,2]
[310135601,1704381051543,-588.93,0.0003315,2]
[310135602,1704381051566,-500.0,0.0003315,2]
[310135603,1704381051578,-500.0,0.0003315,2]
[310135604,1704381051590,-500.0,0.0003315,2]
[310135605,1704381051601,-637.11,0.0003315,2]
[310135606,1704381051612,-500.0,0.0003315,2]
[310135607,1704381051626,-856.33,0.0003315,2]
[310135608,1704381051638,-500.0,0.0003315,2]
[310135609,1704381051650,-258.23187238,0.0003315,2]
[310135610,1704381051662,-500.0,0.0003315,2]
[310135611,1704381051673,-845.85,0.0003315,2]
[310135612,1704381051685,-500.0,0.0003315,2]
[310135613,1704381051699,-500.0,0.0003315,2]
[310135614,1704381051713,-500.0,0.0003315,2]
[310135615,1704381051726,-1610.87,0.0003315,2]
[310135616,1704381051737,-500.0,0.0003315,2]
[310135617,1704381051749,-1103.0,0.0003315,2]
[310135618,1704381051760,-814.67,0.0003315,2]
[310135619,1704381051772,-856.75,0.0003315,2]
[310135620,1704381051784,-500.0,0.0003315,2]
[310135621,1704381051797,-500.0,0.0003315,2]
[310135622,1704381051808,-641.42,0.0003315,2]
[310135623,1704381051819,-500.0,0.0003315,2]
[310135624,1704381051831,-500.0,0.0003315,2]
[310135625,1704381051841,-500.0,0.0003315,2]
[310135626,1704381051853,-500.0,0.0003315,2]
[310135627,1704381051864,-530.17452793,0.0003315,2]
[310135628,1704381051875,-500.0,0.0003315,2]
[310135629,1704381051885,-1223.11,0.0003315,2]
[310135630,1704381051897,-500.0,0.0003315,2]
[310135631,1704381051907,-500.0,0.0003315,2]
[310135632,1704381051918,-500.0,0.0003315,2]
[310135633,1704381051930,-981.86,0.0003315,2]
[310135634,1704381051941,-500.0,0.0003315,2]
[310135635,1704381051952,-500.0,0.0003315,2]
[310135636,1704381051963,-500.0,0.0003315,2]
[310135637,1704381051974,-580.44,0.0003315,2]
[310135638,1704381051986,-500.0,0.0003315,2]
[310135639,1704381051998,-952.54,0.0003315,2]